bitfinex-derivatives/quotes_SOLF0:USTF0_20230105
["timestamp","ask_amount","ask_price","bid_price","bid_amount"]
[1672899109475,37.596,13.303,13.299,10.0]
[1672899110525,37.596,13.303,13.298,37.608]
[1672899115254,37.596,13.303,13.297,37.611]
[1672899115466,37.596,13.303,13.298,10.0]
[1672899117352,37.596,13.303,13.297,47.611]
[1672899117562,37.596,13.303,13.297,37.611]
[1672899118407,45.086,13.303,13.297,37.611]
[1672899120608,7.53,13.301,13.296,37.68047409]
[1672899120823,37.605,13.3,13.296,37.68047409]
[1672899121137,37.605,13.3,13.296,0.06547409]
[1672899122601,7.49,13.297,13.296,7.409e-05]
[1672899122926,75.233,13.296,13.285,10.0]
[1672899123236,75.233,13.296,13.288,10.0]
[1672899123237,7.5,13.296,13.288,10.0]
[1672899123870,7.5,13.296,13.29,10.0]
[1672899124922,7.5,13.296,13.292,37.625]
[1672899125234,7.5,13.296,13.293,10.0]
[1672899126495,7.52,13.295,13.293,10.0]
[1672899126913,7.52,13.295,13.294,37.621]
[1672899129865,7.52,13.295,13.293,37.622]
[1672899130075,7.52,13.295,13.294,10.0]
[1672899131020,7.52,13.295,13.294,47.621]
[1672899133753,7.52,13.295,13.294,37.621]
[1672899138161,0.06894288,13.3,13.295,10.0]
[1672899138371,7.5,13.3,13.296,37.614]
[1672899138587,7.5,13.3,13.297,10.0]
[1672899139215,56.31,13.318,13.299,7.53]
[1672899139427,7.5,13.31,13.301,7.46]
[1672899139637,7.5,13.31,13.302,10.0]
[1672899140261,7.52,13.312,13.303,112.784]
[1672899140473,75.135,13.313,13.304,17.53]
[1672899140791,75.135,13.313,13.305,10.0]
[1672899141001,37.574,13.311,13.305,37.589]
[1672899141412,37.574,13.311,13.306,10.0]
[1672899141622,37.574,13.311,13.306,47.586]
[1672899142474,45.101,13.312,13.306,47.586]
[1672899143208,7.53,13.312,13.306,47.586]
[1672899144472,7.53,13.312,13.305,37.589]
[1672899144683,7.53,13.312,13.306,10.0]
[1672899145415,45.1,13.312,13.306,10.0]
[1672899145625,45.1,13.312,13.306,47.586]
[1672899145939,45.1,13.312,13.304,10.0]
[1672899146144,7.53,13.312,13.304,47.592]
[1672899146354,45.102,13.312,13.304,47.592]
[1672899147727,7.53,13.312,13.304,47.592]
[1672899147939,7.49,13.313,13.304,10.0]
[1672899148253,82.628,13.313,13.304,10.0]
[1672899148465,37.57,13.312,13.304,47.591]
[1672899149720,37.57,13.312,13.304,10.0]
[1672899149935,37.57,13.312,13.303,0.06197675]
[1672899150461,7.48,13.311,13.303,0.06197675]
[1672899150672,37.578,13.31,13.304,37.592]
[1672899151191,37.578,13.31,13.303,37.65697675]
[1672899152984,37.578,13.31,13.303,0.06197675]
[1672899153402,7.51,13.309,13.303,0.06197675]
[1672899153614,0.05864974,13.303,13.3,10.0]
[1672899154134,0.05864974,13.303,13.301,37.601]
[1672899154345,0.05864974,13.303,13.302,10.0]
[1672899154761,0.05864974,13.303,13.302,47.598]
[1672899155504,0.05864974,13.303,13.302,37.598]
[1672899157397,0.05864974,13.303,13.301,37.599]
[1672899157606,7.51,13.302,13.298,0.06657112]
[1672899158232,37.602,13.301,13.298,0.06657112]
[1672899158448,7.51,13.3,13.295,0.06130215]
[1672899158870,7.49,13.296,13.295,2.15e-06]
[1672899159183,7.49,13.296,13.291,37.627]
[1672899159393,7.51,13.294,13.291,37.627]
[1672899160332,7.51,13.294,13.289,112.901]
[1672899160333,7.47,13.292,13.289,112.901]
[1672899160550,7.48,13.294,13.291,37.629]
[1672899160758,7.48,13.294,13.292,10.0]
[1672899161285,7.48,13.294,13.292,37.625]
[1672899161496,7.48,13.294,13.29,10.0]
[1672899161913,7.48,13.294,13.292,10.0]
[1672899162756,7.48,13.294,13.29,10.0]
[1672899163174,7.48,13.294,13.291,13.83261342]
[1672899163175,45.101,13.294,13.291,13.83261342]
[1672899163491,7.48,13.294,13.288,13.8979754]
[1672899163710,7.48,13.294,13.289,10.0]
[1672899163916,7.48,13.294,13.289,122.903]
[1672899164126,7.48,13.294,13.29,13.83261342]
[1672899164336,7.48,13.294,13.291,10.0]
[1672899164549,7.48,13.294,13.291,47.629]
[1672899164760,7.48,13.294,13.291,10.0]
[1672899165392,7.48,13.294,13.289,47.633]
[1672899165802,7.48,13.294,13.29,13.83305445]
[1672899166018,45.101,13.294,13.29,51.46305445]
[1672899166540,7.48,13.294,13.29,51.46305445]
[1672899166757,7.48,13.294,13.292,37.626]
[1672899166965,7.48,13.294,13.292,47.626]
[1672899167175,7.48,13.294,13.293,10.0]
[1672899167592,45.101,13.294,13.292,10.0]
[1672899167800,7.48,13.294,13.292,10.0]
[1672899168226,7.48,13.294,13.289,85.269]
[1672899168647,7.48,13.294,13.291,37.628]
[1672899168859,7.48,13.294,13.292,10.0]
[1672899169058,7.49,13.296,13.292,10.0]
[1672899169698,0.06148575,13.297,13.294,10.0]
[1672899169908,7.57461659,13.3,13.294,10.0]
[1672899170109,0.05864974,13.303,13.294,10.0]
[1672899170110,7.47,13.301,13.294,10.0]
[1672899170740,45.072,13.301,13.296,10.0]
[1672899171905,45.072,13.301,13.296,47.612]
[1672899172642,45.072,13.301,13.296,10.0]
[1672899173370,7.47,13.301,13.296,10.0]
[1672899173585,7.47,13.301,13.296,47.615]
[1672899175056,45.072,13.301,13.296,47.615]
[1672899177470,120.274,13.301,13.296,10.0]
[1672899177897,45.072,13.301,13.296,47.613]
[1672899178528,45.072,13.301,13.296,37.613]
[1672899181575,45.072,13.301,13.294,75.237]
[1672899181786,45.072,13.301,13.295,37.617]
[1672899181995,45.072,13.301,13.296,10.0]
[1672899182837,120.274,13.301,13.296,10.0]
[1672899183048,120.274,13.301,13.295,10.0]
[1672899183258,120.274,13.301,13.295,47.617]
[1672899183574,120.274,13.301,13.293,10.0]
[1672899183783,120.274,13.301,13.292,10.06819905]
[1672899184205,120.274,13.301,13.294,10.0]
[1672899184624,7.51,13.299,13.294,10.0]
[1672899184838,37.611,13.298,13.293,37.623]
[1672899185045,37.611,13.298,13.292,0.06819905]
[1672899185046,7.47,13.297,13.292,0.06819905]
[1672899185353,7.47,13.296,13.292,0.06819905]
[1672899186724,45.086,13.296,13.292,0.06819905]
[1672899193876,45.086,13.296,13.292,37.69319905]
[1672899194086,45.086,13.296,13.292,0.06819905]
[1672899195242,45.086,13.296,13.292,37.69419905]
[1672899197448,0.02012176,13.292,13.288,75.272]
[1672899197658,37.64712176,13.292,13.286,85.287]
[1672899197867,37.64712176,13.292,13.287,10.0]
[1672899198078,0.02012176,13.292,13.289,37.634]
[1672899198290,0.02012176,13.292,13.29,10.0]
[1672899199020,0.02012176,13.292,13.287,10.0]
[1672899199649,0.02012176,13.292,13.288,13.83371057]
[1672899199862,0.02012176,13.292,13.29,37.631]
[1672899200069,0.02012176,13.292,13.291,10.0]
[1672899200498,0.02012176,13.292,13.289,10.0]
[1672899200911,0.02012176,13.292,13.29,13.8336346]
[1672899201545,0.02012176,13.292,13.289,23.8336346]
[1672899201755,0.02012176,13.292,13.29,37.632]
[1672899201963,0.02012176,13.292,13.291,10.0]
[1672899202907,37.64612176,13.292,13.291,10.0]
[1672899203123,0.02012176,13.292,13.287,10.0]
[1672899203647,0.02012176,13.292,13.288,51.46940836]
[1672899203857,0.02012176,13.292,13.289,10.0]
[1672899204169,0.02012176,13.292,13.29,37.632]
[1672899204376,0.02012176,13.292,13.291,10.0]
[1672899204800,0.02012176,13.292,13.289,10.0]
[1672899205009,0.02012176,13.292,13.288,10.0]
[1672899205328,0.02012176,13.292,13.289,13.83322032]
[1672899205530,0.02012176,13.292,13.29,10.0]
[1672899206266,0.02012176,13.292,13.29,37.632]
[1672899206798,0.02012176,13.292,13.291,10.0]
[1672899207109,0.02012176,13.292,13.29,47.632]
[1672899207325,0.02012176,13.292,13.29,37.632]
[1672899208372,7.28284891,13.291,13.286,0.07006774]
[1672899208689,7.51,13.291,13.286,0.07006774]
[1672899209006,0.02012176,13.292,13.286,0.07006774]
[1672899209215,0.02012176,13.292,13.288,37.638]
[1672899209424,0.02012176,13.292,13.289,10.0]
[1672899209741,0.02012176,13.292,13.289,23.83915039]
[1672899210056,0.02012176,13.292,13.29,13.83915039]
[1672899210266,0.02012176,13.292,13.291,10.0]
[1672899211002,0.02012176,13.292,13.29,10.0]
[1672899211315,0.02012176,13.292,13.289,85.27]
[1672899211842,0.02012176,13.292,13.29,13.83325137]
[1672899212047,0.02012176,13.292,13.291,37.629]
[1672899217406,0.02012176,13.292,13.289,10.0]
[1672899218039,0.02012176,13.292,13.29,13.8333666]
[1672899218249,0.02012176,13.292,13.291,10.0]
[1672899218883,0.02012176,13.292,13.291,37.629]
[1672899220355,0.02012176,13.292,13.291,112.888]
[1672899222876,0.02012176,13.292,13.291,37.629]
[1672899224661,0.02012176,13.292,13.288,85.271]
[1672899224981,0.02012176,13.292,13.289,13.83288493]
[1672899225286,0.02012176,13.292,13.291,37.629]
[1672899225502,0.06759833,13.296,13.291,37.629]
[1672899225817,9.833e-05,13.296,13.292,10.0]
[1672899226028,9.833e-05,13.296,13.293,112.87]
[1672899226239,37.605,13.3,13.294,10.0]
[1672899227178,37.603,13.301,13.295,37.616]
[1672899227389,37.603,13.301,13.296,10.0]
[1672899228865,37.603,13.301,13.297,37.612]
[1672899229075,37.603,13.301,13.298,10.0]
[1672899229281,75.202,13.301,13.298,10.0]
[1672899229489,0.0629421,13.302,13.298,10.0]
[1672899229809,37.601,13.301,13.298,10.0]
[1672899230228,37.601,13.301,13.297,37.611]
[1672899230858,37.601,13.301,13.296,10.0]
[1672899230859,112.803,13.301,13.296,10.0]
[1672899231068,37.601,13.301,13.296,10.0]
[1672899231802,37.601,13.301,13.296,47.615]
[1672899234009,37.6629421,13.302,13.296,47.615]
[1672899234221,0.0629421,13.302,13.296,47.615]
[1672899234959,37.601,13.301,13.296,47.615]
[1672899235801,37.601,13.301,13.296,37.615]
[1672899240323,37.601,13.301,13.297,10.0]
[1672899240534,37.601,13.301,13.297,47.611]
[1672899241053,37.601,13.301,13.297,37.611]
[1672899241270,7.49,13.3,13.295,37.67724699]
[1672899241476,37.608,13.299,13.295,37.67724699]
[1672899244945,37.608,13.299,13.295,0.06024699]
[1672899245366,112.822,13.299,13.295,0.06024699]
[1672899245577,37.608,13.299,13.295,37.67624699]
[1672899247051,7.49,13.3,13.295,37.67624699]
[1672899247574,45.094,13.3,13.295,37.67624699]
[1672899258613,7.49,13.299,13.295,37.67624699]
[1672899258825,45.097,13.299,13.295,37.67624699]
[1672899259983,45.097,13.299,13.295,0.06024699]
[1672899260822,45.097,13.299,13.295,37.67824699]
[1672899261244,45.097,13.299,13.295,0.06024699]
[1672899263449,45.097,13.299,13.295,37.67724699]
[1672899264813,120.311,13.299,13.295,0.06024699]
[1672899265026,45.097,13.299,13.295,0.06024699]
[1672899265341,7.49,13.299,13.295,0.06024699]
[1672899265654,45.097,13.299,13.295,0.06024699]
[1672899266917,45.097,13.299,13.295,37.67724699]
[1672899268802,7.49,13.299,13.295,0.06024699]
[1672899269644,120.311,13.299,13.295,0.06024699]
[1672899269857,45.097,13.299,13.295,0.06024699]
[1672899270173,120.311,13.299,13.295,0.06024699]
[1672899270488,7.49,13.299,13.295,0.06024699]
[1672899272169,7.49,13.299,13.295,37.67724699]
[1672899273006,37.61,13.298,13.295,37.67724699]
[1672899273321,7.49,13.299,13.295,37.617]
[1672899274372,7.49,13.299,13.294,37.619]
[1672899274373,45.098,13.299,13.294,37.619]
[1672899274686,45.098,13.299,13.295,10.0]
[1672899275634,45.098,13.299,13.294,47.619]
[1672899276999,45.098,13.299,13.294,37.619]
[1672899277948,45.098,13.299,13.293,37.623]
[1672899278260,7.47,13.297,13.293,37.623]
[1672899278465,45.085,13.297,13.293,37.623]
[1672899278888,45.085,13.297,13.292,0.06351545]
[1672899280141,7.47,13.297,13.292,0.06351545]
[1672899280780,45.084,13.297,13.292,0.06351545]
[1672899280989,7.47,13.297,13.292,0.06351545]
[1672899281831,45.082,13.297,13.292,0.06351545]
[1672899282042,45.082,13.297,13.292,37.68951545]
[1672899283297,7.51,13.295,13.292,37.46379168]
[1672899287296,45.128,13.295,13.291,37.627]
[1672899287507,45.128,13.295,13.291,47.627]
[1672899287720,45.128,13.295,13.291,37.627]
[1672899288450,45.128,13.295,13.289,0.06844509]
[1672899288667,45.128,13.295,13.29,37.632]
[1672899289296,45.128,13.295,13.291,13.83234668]
[1672899289610,45.128,13.295,13.291,23.83234668]
[1672899289822,45.128,13.295,13.291,13.83234668]
[1672899290033,45.128,13.295,13.289,0.06844509]
[1672899290455,45.128,13.295,13.289,13.90074245]
[1672899290871,45.128,13.295,13.29,37.63]
[1672899291188,45.128,13.295,13.291,10.0]
[1672899291397,45.128,13.295,13.291,23.83229736]
[1672899291820,45.128,13.295,13.291,10.0]
[1672899292030,45.128,13.295,13.29,37.63]
[1672899292665,45.128,13.295,13.291,13.83228779]
[1672899292875,7.51,13.292,13.291,13.83228779]
[1672899293080,45.136,13.292,13.289,0.06844509]
[1672899293291,7.53,13.291,13.286,0.06239723]
[1672899293501,7.53,13.291,13.286,13.89516287]
[1672899293712,7.53,13.291,13.287,10.0]
[1672899294029,7.53,13.291,13.289,37.634]
[1672899294447,7.53,13.291,13.29,23.83276564]
[1672899295079,7.53,13.291,13.29,61.46476564]
[1672899296341,7.53,13.291,13.29,51.46476564]
[1672899296552,7.53,13.291,13.29,13.83276564]
[1672899296973,7.53,13.291,13.288,13.83276564]
[1672899297184,7.53,13.291,13.289,10.0]
[1672899297497,7.53,13.291,13.29,13.83276564]
[1672899297919,7.53,13.291,13.29,51.46476564]
[1672899308641,7.53,13.292,13.29,51.46476564]
[1672899309167,7.53,13.292,13.291,13.83276564]
[1672899309378,7.53,13.292,13.291,61.46176564]
[1672899309582,7.53,13.292,13.291,51.46176564]
[1672899310634,45.156,13.292,13.291,13.83276564]
[1672899310848,7.53,13.292,13.291,13.83276564]
[1672899312000,7.53,13.292,13.291,51.46176564]
[1672899312421,0.06114803,13.296,13.292,10.0]
[1672899312631,7.46,13.293,13.292,47.625]
[1672899314207,7.46,13.293,13.292,37.625]
[1672899317675,7.46,13.293,13.291,37.628]
[1672899317891,7.53,13.292,13.29,10.0]
[1672899318416,7.53,13.292,13.289,0.06921894]
[1672899318625,45.134,13.293,13.29,37.631]
[1672899318836,45.134,13.293,13.288,13.83380782]
[1672899318837,7.53,13.291,13.288,13.83380782]
[1672899319047,7.52,13.289,13.288,13.83380782]
[1672899319258,7.52,13.289,13.286,0.06777233]
[1672899319468,7.51,13.287,13.284,47.648]
[1672899319678,7.51,13.287,13.284,37.648]
[1672899321252,7.51,13.287,13.283,0.06124726]
[1672899321464,7.51,13.287,13.283,37.71224726]
[1672899322616,7.51,13.287,13.283,47.71224726]
[1672899322824,7.51,13.287,13.284,13.83943247]
[1672899323033,7.51,13.287,13.285,47.646]
[1672899324514,7.51,13.287,13.285,37.646]
[1672899325873,45.151,13.287,13.284,37.648]
[1672899326088,7.51,13.287,13.284,37.648]
[1672899326299,7.53,13.285,13.283,0.06124726]
[1672899326510,7.53,13.285,13.282,37.653]
[1672899326823,7.53,13.285,13.283,13.84036099]
[1672899327033,7.53,13.285,13.283,13.62570535]
[1672899327451,7.53,13.285,13.283,51.27770535]
[1672899327872,7.48,13.286,13.28,75.321]
[1672899328082,7.48,13.286,13.281,10.0]
[1672899328296,7.48,13.286,13.281,23.84070348]
[1672899328501,7.48,13.286,13.282,10.0]
[1672899328710,7.48,13.286,13.282,23.84070348]
[1672899328922,37.644,13.286,13.282,61.49470348]
[1672899329132,37.644,13.286,13.283,13.84070348]
[1672899331024,37.644,13.286,13.283,51.49070348]
[1672899331341,37.644,13.286,13.283,37.65]
[1672899334499,45.151,13.287,13.283,37.65]
[1672899338593,7.51,13.287,13.283,37.65]
[1672899348694,7.54142008,13.288,13.283,37.65]
[1672899352896,45.18042008,13.288,13.283,37.65]
[1672899353318,7.48,13.287,13.283,37.65]
[1672899353524,45.122,13.287,13.283,37.65]
[1672899356159,45.122,13.287,13.282,37.653]
[1672899356684,45.122,13.287,13.283,13.84085084]
[1672899356891,45.122,13.287,13.283,23.84085084]
[1672899357101,45.122,13.287,13.283,13.84085084]
[1672899358785,7.48,13.285,13.283,13.84085084]
[1672899358995,7.48,13.284,13.283,13.84085084]
[1672899361518,7.48,13.284,13.282,37.653]
[1672899362039,7.48,13.284,13.279,0.07006698]
[1672899362258,7.5,13.28,13.269,158.3588]
[1672899362567,7.53,13.284,13.274,7.47]
[1672899362771,7.53,13.284,13.277,10.0]
[1672899363190,7.53,13.284,13.28,37.659]
[1672899363408,45.179,13.284,13.281,10.0]
[1672899363614,7.53,13.284,13.281,10.0]
[1672899364459,7.53,13.284,13.279,10.0]
[1672899364984,7.53,13.284,13.282,10.0]
[1672899365193,7.53,13.284,13.28,13.8428569]
[1672899366663,7.53,13.284,13.279,13.8428569]
[1672899366880,45.18,13.284,13.28,37.66]
[1672899367404,45.18,13.284,13.281,13.8428569]
[1672899368038,7.54,13.282,13.275,75.345]
[1672899368248,37.659,13.281,13.276,0.06173848]
[1672899369193,45.195,13.282,13.277,37.666]
[1672899371300,45.195,13.282,13.276,0.06173848]
[1672899371301,7.54,13.278,13.276,0.06173848]
[1672899371513,7.53,13.277,13.272,75.42732328]
[1672899372034,7.53,13.277,13.273,13.84874299]
[1672899372455,7.53,13.277,13.274,10.0]
[1672899372979,7.53,13.277,13.275,51.52274299]
[1672899373401,7.53,13.277,13.275,37.674]
[1672899374660,7.59390838,13.279,13.275,37.674]
[1672899375822,45.25790838,13.279,13.275,37.674]
[1672899377930,7.54,13.277,13.274,37.677]
[1672899378141,45.21,13.277,13.275,10.0]
[1672899379292,45.21,13.277,13.274,10.0]
[1672899380026,45.21,13.277,13.274,37.677]
[1672899380241,45.21,13.277,13.272,0.06632328]
[1672899380662,45.21,13.277,13.272,13.91676106]
[1672899381919,45.21,13.277,13.273,37.679]
[1672899382237,45.21,13.277,13.274,10.0]
[1672899382766,45.21,13.277,13.273,47.679]
[1672899384237,45.21,13.277,13.274,13.85029593]
[1672899384447,45.21,13.277,13.274,23.85029593]
[1672899384656,45.21,13.277,13.274,13.85029593]
[1672899384863,45.21,13.277,13.273,37.679]
[1672899385391,45.21,13.277,13.274,13.85027487]
[1672899385919,45.21,13.277,13.274,23.85027487]
[1672899386125,45.21,13.277,13.274,13.85027487]
[1672899388019,45.21,13.277,13.274,13.74067793]
[1672899388232,37.67,13.277,13.274,13.74067793]
[1672899388961,37.67,13.277,13.272,13.80700121]
[1672899392227,37.67,13.277,13.272,0.06632328]
[1672899392430,37.67,13.277,13.273,13.74067793]
[1672899393062,37.67,13.277,13.27,13.74067793]
[1672899393063,7.53,13.274,13.27,13.74067793]
[1672899393275,7.52,13.272,13.264,10.0]
[1672899393487,7.52,13.272,13.264,23.85860982]
[1672899393805,45.206,13.272,13.266,37.699]
[1672899394003,45.206,13.272,13.267,10.0]
[1672899394327,37.686,13.272,13.267,10.0]
[1672899394537,37.686,13.272,13.266,10.0]
[1672899395057,37.686,13.272,13.267,37.695]
[1672899395273,0.06825904,13.274,13.268,7.55]
[1672899395483,0.06825904,13.274,13.269,10.0]
[1672899395690,0.06825904,13.274,13.269,23.852604]
[1672899396009,0.06825904,13.274,13.27,13.852604]
[1672899396324,0.06825904,13.274,13.271,47.685]
[1672899396535,37.73796059,13.277,13.272,10.0]
[1672899396844,37.67,13.277,13.273,37.679]
[1672899397059,37.67,13.277,13.274,10.0]
[1672899397263,37.666,13.278,13.274,47.676]
[1672899397893,37.666,13.278,13.274,37.676]
[1672899398424,37.666,13.278,13.273,37.679]
[1672899398740,37.666,13.278,13.274,10.0]
[1672899399583,37.666,13.278,13.274,47.677]
[1672899399796,37.73013331,13.279,13.274,47.677]
[1672899401056,37.63625015,13.279,13.274,47.677]
[1672899401476,45.181,13.28,13.274,47.677]
[1672899401898,37.661,13.28,13.274,47.677]
[1672899402115,37.658,13.281,13.274,47.677]
[1672899403573,45.27474851,13.282,13.274,47.677]
[1672899403791,0.06874851,13.282,13.274,47.677]
[1672899404530,37.72374851,13.282,13.274,47.677]
[1672899405258,0.06874851,13.282,13.274,47.677]
[1672899407368,37.72374851,13.282,13.274,47.677]
[1672899408416,7.55,13.281,13.274,37.677]
[1672899408632,37.662,13.28,13.274,37.677]
[1672899409787,37.662,13.28,13.274,47.677]
[1672899410198,45.209,13.281,13.274,47.677]
[1672899412096,45.209,13.281,13.275,10.0]
[1672899412310,45.209,13.281,13.276,37.669]
[1672899412509,45.209,13.281,13.277,10.0]
[1672899413882,45.209,13.281,13.277,47.667]
[1672899414197,7.55,13.281,13.277,47.667]
[1672899415878,45.208,13.281,13.277,47.667]
[1672899416091,45.208,13.281,13.277,37.667]
[1672899419655,7.55,13.281,13.276,37.671]
[1672899419872,7.55,13.281,13.277,10.0]
[1672899420075,45.21,13.281,13.277,10.0]
[1672899421656,45.21,13.281,13.275,10.0]
[1672899421869,45.21,13.281,13.276,37.67]
[1672899422079,45.21,13.281,13.277,10.0]
[1672899427229,45.21,13.281,13.276,37.67]
[1672899427863,45.21,13.281,13.275,37.673]
[1672899428067,45.21,13.281,13.276,10.0]
[1672899428593,37.66,13.281,13.276,10.0]
[1672899429645,37.66,13.281,13.275,37.673]
[1672899429855,7.55,13.28,13.273,0.06256934]
[1672899430064,37.666,13.278,13.273,0.06256934]
[1672899431538,37.666,13.278,13.273,37.74156934]
[1672899433010,0.09907903,13.273,13.268,75.389]
[1672899433215,0.09907903,13.273,13.269,10.0]
[1672899433744,0.09907903,13.273,13.27,13.8518638]
[1672899433956,0.09907903,13.273,13.271,47.685]
[1672899434376,0.09907903,13.273,13.272,13.8518638]
[1672899434582,0.09907903,13.273,13.272,51.5348638]
[1672899452975,7.903e-05,13.273,13.272,51.5348638]
[1672899463368,7.903e-05,13.273,13.272,37.683]
[1672899463579,7.903e-05,13.273,13.269,10.0]
[1672899463794,7.903e-05,13.273,13.271,37.685]
[1672899467892,37.68007903,13.273,13.27,37.688]
[1672899468098,37.68007903,13.273,13.267,10.07006329]
[1672899468313,37.68007903,13.273,13.267,0.07006329]
[1672899468314,7.55,13.272,13.267,0.07006329]
[1672899468523,37.687,13.271,13.267,37.76606329]
[1672899470096,7.55,13.272,13.267,37.76606329]
[1672899471884,45.233,13.272,13.267,37.76606329]
[1672899472199,7.903e-05,13.273,13.268,10.0]
[1672899472407,7.903e-05,13.273,13.269,37.69]
[1672899472725,7.903e-05,13.273,13.27,10.0]
[1672899472936,7.903e-05,13.273,13.271,37.686]
[1672899473146,7.903e-05,13.273,13.272,10.0]
[1672899473567,7.903e-05,13.273,13.272,47.683]
[1672899474405,7.903e-05,13.273,13.272,61.53436031]
[1672899475661,0.06214444,13.276,13.272,61.53436031]
[1672899475982,0.06214444,13.276,13.272,47.683]
[1672899479561,4.444e-05,13.276,13.272,47.683]
[1672899479765,7.53,13.283,13.273,10.0]
[1672899479977,45.182,13.283,13.276,113.016]
[1672899480292,45.182,13.283,13.277,10.0]
[1672899480608,45.182,13.283,13.279,10.0]
[1672899481975,45.182,13.283,13.28,37.66]
[1672899482604,45.182,13.283,13.28,10.0]
[1672899483340,45.182,13.283,13.279,37.663]
[1672899484912,45.182,13.283,13.277,10.0]
[1672899485334,45.182,13.283,13.276,37.73631117]
[1672899485544,120.486,13.283,13.276,37.73531117]
[1672899488700,7.52,13.28,13.276,37.73531117]
[1672899488910,45.181,13.28,13.276,37.73531117]
[1672899493011,45.181,13.28,13.276,0.06431117]
[1672899494481,7.55,13.277,13.276,0.06431117]
[1672899494685,7.55,13.277,13.274,37.676]
[1672899494899,7.55,13.277,13.275,37.674]
[1672899495213,7.55,13.277,13.272,0.06711125]
[1672899496898,7.55,13.277,13.274,37.675]
[1672899497843,7.55,13.277,13.272,0.06711125]
[1672899498055,7.52,13.276,13.272,37.74911125]
[1672899498787,37.675,13.275,13.272,0.06711125]
[1672899498995,37.675,13.275,13.269,0.07073343]
[1672899499412,37.675,13.275,13.269,37.76073343]
[1672899499735,37.675,13.275,13.27,10.0]
[1672899499946,7.55,13.274,13.27,13.8535817]
[1672899500155,7.55,13.272,13.27,13.65082867]
[1672899500369,7.55,13.272,13.269,0.07073343]
[1672899500575,45.234,13.272,13.268,10.0]
[1672899500787,45.234,13.272,13.267,10.0]
[1672899500992,45.234,13.272,13.268,37.694]
[1672899501311,45.234,13.272,13.267,10.0]
[1672899501517,7.55,13.272,13.267,10.0]
[1672899501728,0.07059733,13.274,13.268,37.694]
[1672899501729,37.682,13.273,13.268,37.694]
[1672899501936,7.62059733,13.274,13.269,10.0]
[1672899502149,7.62059733,13.274,13.27,37.687]
[1672899502885,120.65459733,13.274,13.268,37.693]
[1672899503102,120.65459733,13.274,13.269,10.0]
[1672899504047,120.65459733,13.274,13.268,37.694]
[1672899504253,120.65459733,13.274,13.266,0.06423943]
[1672899505938,120.65459733,13.274,13.266,37.76323943]
[1672899507410,113.10459733,13.274,13.266,37.76323943]
[1672899508355,7.55,13.273,13.266,37.76323943]
[1672899508567,37.686,13.271,13.266,37.76323943]